bitfinex/quotes_SOLUSD_20251025
["timestamp","ask_amount","ask_price","bid_price","bid_amount"]
[1761395304169,0.82,193.76,193.75,5.16129032]
[1761395311579,0.1,193.76,193.75,5.16129032]
[1761395312052,0.82,193.76,193.75,5.16129032]
[1761395319356,0.82,193.76,193.74,5.16151375]
[1761395319556,1.01288859,193.76,193.72,5.16182473]
[1761395319879,1.63682591,193.75,193.72,5.16182473]
[1761395320179,0.19288859,193.74,193.72,5.16182473]
[1761395320378,2.5497145,193.74,193.72,5.16182473]
[1761395320577,1.63682591,193.73,193.68,12.90737672]
[1761395320752,0.19288859,193.72,193.68,12.90737672]
[1761395321071,2.5497145,193.72,193.68,12.90737672]
[1761395321273,2.5497145,193.72,193.68,18.07053244]
[1761395321454,0.72,193.71,193.68,18.07053244]
[1761395321650,16.22107215,193.71,193.68,18.07053244]
[1761395322080,0.72,193.7,193.68,18.07053244]
[1761395322371,1.63682591,193.69,193.65,28.41278091]
[1761395322575,2.5497145,193.68,193.64,5.16422226]
[1761395322976,0.72,193.67,193.64,5.16422226]
[1761395324074,1.63682591,193.65,193.61,15.50668079]
[1761395324278,0.19288859,193.64,193.6,5.16528925]
[1761395324481,0.91288859,193.64,193.6,5.16528925]
[1761395324774,11.7893638,193.64,193.6,5.16528925]
[1761395324984,0.72,193.63,193.6,5.16528925]
[1761395325571,0.72,193.63,193.6,6.80211516]
[1761395325882,0.72,193.63,193.6,5.16528925]
[1761395328877,0.72,193.63,193.6,6.80211516]
[1761395330779,0.72,193.63,193.6,7.72657485]
[1761395331286,0.72,193.63,193.6,20.63979799]
[1761395334093,0.72,193.63,193.6,18.07851239]
[1761395334297,0.72,193.63,193.6,20.63979799]
[1761395334972,0.72,193.63,193.6,18.07851239]
[1761395335177,0.72,193.63,193.6,20.63979799]
[1761395337374,0.72,193.63,193.6,18.07851239]
[1761395337685,3.47417419,193.63,193.6,5.16528925]
[1761395337875,2.5612856,193.62,193.59,5.16555607]
[1761395338080,0.68,193.61,193.59,5.16555607]
[1761395339590,0.87288859,193.61,193.59,5.16555607]
[1761395339982,0.66,193.6,193.58,5.16582291]
[1761395342388,0.85288859,193.6,193.57,5.1660547]
[1761395342998,0.66,193.59,193.57,5.1660547]
[1761395344696,0.66,193.59,193.56,5.16635668]
[1761395345208,16.17309563,193.59,193.56,5.16635668]
[1761395345376,16.17309563,193.59,193.56,7.72764228]
[1761395345579,0.66,193.59,193.56,7.72764228]
[1761395346284,0.66,193.59,193.55,7.72790921]
[1761395346793,0.66,193.59,193.55,8.38790921]
[1761395346989,102.2,193.6,193.57,2.5612856]
[1761395347205,102.86,193.6,193.57,2.5612856]
[1761395347393,102.39288859,193.6,193.57,2.5612856]
[1761395347700,0.66,193.59,193.55,18.08318263]
[1761395347901,0.66,193.59,193.56,2.5612856]
[1761395348206,0.66,193.59,193.55,21.30446823]
[1761395348501,0.66,193.59,193.55,20.64446823]
[1761395348804,0.66,193.59,193.55,21.30446823]
[1761395349276,0.66,193.59,193.55,20.64446823]
[1761395349699,0.66,193.59,193.55,18.08318263]
[1761395349891,0.66,193.59,193.55,20.64446823]
[1761395350290,0.85288859,193.59,193.55,20.64446823]
[1761395351106,0.66,193.58,193.55,20.64446823]
[1761395353086,0.66,193.58,193.55,21.30446823]
[1761395353405,2.5612856,193.65,193.56,0.66]
[1761395353627,0.66,193.62,193.58,2.5612856]
[1761395353913,0.66,193.62,193.57,38.2812856]
[1761395354100,0.85288859,193.62,193.57,38.2812856]
[1761395354493,0.66,193.61,193.58,5.16582291]
[1761395356215,0.66,193.61,193.58,7.72710851]
[1761395356416,0.66,193.61,193.58,5.16582291]
[1761395356802,0.19288859,193.6,193.58,5.16582291]
[1761395357148,13.6306494,193.6,193.56,5.16635668]
[1761395357409,0.66,193.59,193.56,5.16635668]
[1761395357784,2.5612856,193.57,193.54,0.2]
[1761395357988,0.19288859,193.57,193.54,0.2]
[1761395358192,0.66,193.56,193.54,0.2]
[1761395358727,0.66,193.56,193.54,5.36684915]
[1761395361527,0.85288859,193.56,193.54,5.36684915]
[1761395362031,0.71,193.55,193.54,0.2]
[1761395362903,3.2712856,193.55,193.54,0.2]
[1761395363108,14.14776081,193.55,193.54,0.2]
[1761395363933,14.3406494,193.55,193.54,0.2]
[1761395367232,19.50727301,193.55,193.54,0.2]
[1761395367707,16.94598741,193.55,193.54,0.2]
[1761395367909,11.7793638,193.55,193.54,0.2]
[1761395368920,11.7793638,193.55,193.54,35.92]
[1761395369245,11.7793638,193.55,193.54,0.2]
[1761395370741,14.3406494,193.55,193.54,0.2]
[1761395373436,19.50727301,193.55,193.54,0.2]
[1761395373948,21.57664883,193.55,193.54,0.2]
[1761395374654,19.01536323,193.55,193.54,0.2]
[1761395374955,21.57664883,193.55,193.54,0.2]
[1761395375636,44.45664883,193.55,193.54,0.2]
[1761395377244,19.01536323,193.55,193.54,0.2]
[1761395377440,33.75647521,193.53,193.52,0.2]
[1761395377745,69.6893638,193.53,193.52,0.2]
[1761395377956,70.3993638,193.53,193.52,0.2]
[1761395378248,72.46895376,193.53,193.52,0.2]
[1761395379334,77.6361113,193.53,193.52,0.2]
[1761395379543,41.8961113,193.53,193.52,0.2]
[1761395379746,72.9606494,193.53,193.52,0.2]
[1761395380752,78.12780694,193.53,193.52,0.2]
[1761395389056,34.6593638,193.53,193.52,0.2]
[1761395389365,11.0693638,193.54,193.52,0.2]
[1761395389537,11.7793638,193.54,193.52,0.2]
[1761395391040,14.3406494,193.54,193.52,0.2]
[1761395391740,3.2212856,193.53,193.52,0.2]
[1761395392743,1.64133468,193.53,193.52,0.2]
[1761395394176,2.30133468,193.53,193.52,0.2]
[1761395395473,0.66,193.53,193.52,0.2]
[1761395397350,17.87764606,193.54,193.52,0.2]
[1761395397664,18.53764606,193.54,193.52,0.2]
[1761395399164,16.89631138,193.54,193.52,0.2]
[1761395399358,18.53764606,193.54,193.52,0.2]
[1761395400276,13.18780989,193.53,193.52,0.2]
[1761395400577,48.92780989,193.53,193.52,0.2]
[1761395401471,54.09496743,193.53,193.52,0.2]
[1761395401861,56.16455739,193.53,193.52,0.2]
[1761395403681,54.09496743,193.53,193.52,0.2]
[1761395403855,48.25780989,193.53,193.52,0.2]
[1761395404051,48.92780989,193.53,193.52,0.2]
[1761395404362,54.09496743,193.53,193.52,0.2]
[1761395404672,48.25780989,193.53,193.52,0.2]
[1761395404868,46.61647521,193.53,193.52,0.2]
[1761395405087,48.25780989,193.53,193.52,0.2]
[1761395405657,48.92780989,193.53,193.52,0.2]
[1761395405858,54.09496743,193.53,193.52,0.2]
[1761395406564,18.35496743,193.53,193.52,0.2]
[1761395407584,13.18780989,193.53,193.52,0.2]
[1761395408083,12.51780989,193.53,193.52,0.2]
[1761395408291,0.19288859,193.54,193.52,0.2]
[1761395408473,11.0693638,193.55,193.52,0.86]
[1761395408659,1.64133468,193.56,193.52,0.86]
[1761395408866,0.19288859,193.55,193.53,0.66]
[1761395409576,11.0693638,193.56,193.53,5.82696667]
[1761395410689,11.7393638,193.56,193.52,5.36738308]
[1761395411186,13.38069848,193.56,193.52,6.02738308]
[1761395411362,2.31133468,193.55,193.52,0.2]
[1761395412565,2.50422327,193.55,193.52,0.2]
[1761395412993,1.83422327,193.55,193.52,0.86]
[1761395413293,2.50422327,193.55,193.52,0.2]
[1761395413464,1.64133468,193.54,193.52,0.2]
[1761395413666,1.83422327,193.53,193.52,0.2]
[1761395413871,13.38069848,193.53,193.52,0.2]
[1761395415799,11.7393638,193.53,193.52,0.2]
[1761395416099,5.16665338,193.55,193.52,0.86]
[1761395416100,0.19288859,193.55,193.52,0.86]
[1761395416392,12.71069848,193.57,193.53,0.66]
[1761395416605,11.0693638,193.57,193.53,0.66]
[1761395417208,11.0693638,193.57,193.53,2.30133468]
[1761395417576,11.0693638,193.57,193.54,0.66]
[1761395417776,0.19288859,193.57,193.54,5.82670023]
[1761395421303,102.2,193.61,193.56,1.64133468]
[1761395421485,0.19288859,193.61,193.58,1.64133468]
[1761395421680,0.19288859,193.62,193.59,1.64133468]
[1761395422102,0.19288859,193.62,193.6,0.66]
[1761395424208,0.19288859,193.62,193.59,5.16551181]
[1761395424397,0.19288859,193.62,193.59,5.82551181]
[1761395425213,0.90288859,193.62,193.59,5.16551181]
[1761395425417,10.87647521,193.61,193.57,5.16589497]
[1761395425591,0.19288859,193.6,193.57,5.16589497]
[1761395425791,0.19288859,193.6,193.57,5.82589497]
[1761395425991,0.90288859,193.6,193.57,5.16589497]
[1761395428110,0.19288859,193.6,193.57,5.16589497]
[1761395428313,0.19288859,193.61,193.57,5.16589497]
[1761395428536,0.90288859,193.61,193.57,5.16589497]
[1761395428736,0.71,193.6,193.57,5.16589497]
[1761395429633,0.19288859,193.61,193.57,5.16589497]
[1761395429815,0.90288859,193.61,193.57,5.16589497]
[1761395430015,103.10288859,193.61,193.57,5.16589497]
[1761395430541,103.10288859,193.61,193.57,5.82589497]
[1761395431135,102.39288859,193.61,193.57,5.16589497]
[1761395431340,102.39288859,193.61,193.58,0.66]
[1761395432723,0.71,193.6,193.58,5.16582291]
[1761395434040,0.71,193.6,193.57,5.16608978]
[1761395440654,0.71,193.6,193.53,0.66]
[1761395440831,1.64133468,193.56,193.53,5.16715754]
[1761395441024,1.83422327,193.56,193.53,5.16715754]
[1761395441342,0.71,193.55,193.53,5.16715754]
[1761395441744,1.83422327,193.56,193.53,5.16715754]
[1761395442124,0.90288859,193.55,193.53,5.16715754]
[1761395442723,0.71,193.55,193.53,5.16715754]
[1761395444931,0.19288859,193.56,193.53,5.16715754]
[1761395445243,0.90288859,193.56,193.53,5.16715754]
[1761395450647,0.19288859,193.56,193.53,5.16715754]
[1761395450844,0.87288859,193.56,193.53,5.16715754]
[1761395452148,10.87647521,193.55,193.53,5.16715754]
[1761395454252,0.87288859,193.56,193.53,5.16715754]
[1761395457233,13.6328098,193.56,193.53,5.16715754]
[1761395457440,2.563446,193.54,193.52,0.2]
[1761395457744,0.19288859,193.53,193.52,0.2]
[1761395457954,2.75633459,193.53,193.52,0.2]
[1761395458253,3.43633459,193.53,193.52,0.2]
[1761395459861,0.87288859,193.53,193.52,0.2]
[1761395462570,2.563446,193.54,193.52,0.2]
[1761395462571,102.2,193.54,193.52,0.2]
[1761395462771,102.2,193.54,193.52,5.36729691]
[1761395464465,102.86,193.54,193.52,5.36729691]
[1761395465046,102.2,193.54,193.52,5.36729691]
[1761395465668,102.86,193.54,193.52,5.36729691]
[1761395466849,102.2,193.58,193.53,3.223446]
[1761395467054,102.2,193.58,193.56,2.563446]
[1761395467356,102.2,193.58,193.57,2.563446]
[1761395467676,11.53647521,193.63,193.57,2.563446]
[1761395467965,0.19288859,193.62,193.59,2.563446]
[1761395468354,0.85288859,193.63,193.59,2.563446]
[1761395468670,2.563446,193.6,193.53,3.223446]
[1761395468867,2.563446,193.58,193.54,5.16689056]
[1761395469342,0.66,193.57,193.54,5.16689056]
[1761395471358,3.223446,193.57,193.53,5.16715754]
[1761395472169,2.563446,193.57,193.53,5.16715754]
[1761395472477,0.66,193.56,193.53,5.16715754]
[1761395472676,2.563446,193.57,193.53,5.16715754]
[1761395472868,3.223446,193.57,193.53,5.16715754]
[1761395473377,2.563446,193.57,193.53,5.16715754]
[1761395473549,0.66,193.56,193.53,5.16715754]
[1761395476282,102.2,193.59,193.54,0.66]
[1761395476283,102.86,193.59,193.54,0.66]
[1761395476458,102.86,193.59,193.54,2.563446]
[1761395476459,0.66,193.58,193.54,2.563446]
[1761395476777,0.66,193.58,193.53,21.3084974]
[1761395477163,0.85288859,193.58,193.53,21.3084974]
[1761395477968,0.66,193.57,193.53,20.6484974]
[1761395479874,0.66,193.57,193.53,18.0850514]
[1761395480771,104.95633459,193.56,193.52,5.36739984]
[1761395481080,2.563446,193.53,193.52,0.2]
[1761395481278,3.44633459,193.53,193.52,0.2]
[1761395481576,14.3228098,193.53,193.52,0.2]
[1761395497100,19.48996734,193.53,193.52,0.2]
[1761395497485,42.36996734,193.53,193.52,0.2]
[1761395497707,19.48996734,193.53,193.52,0.2]
[1761395497878,21.55987859,193.53,193.52,0.2]
[1761395498479,19.48996734,193.53,193.52,0.2]
[1761395499096,55.28996734,193.53,193.52,0.2]
[1761395500122,19.48996734,193.53,193.52,0.2]
[1761395500299,78.16996734,193.53,193.52,0.2]
[1761395500902,70.4593638,193.53,193.52,0.2]
[1761395501075,37.2028098,193.53,193.52,0.2]
[1761395501278,50.1428098,193.53,193.52,0.2]
[1761395508321,55.30996734,193.53,193.52,0.2]
[1761395516723,54.38879889,193.53,193.52,0.2]
[1761395519510,56.45871014,193.53,193.52,0.2]
[1761395520310,135.7564752,193.5,193.49,0.2]
[1761395520611,173.19875275,193.5,193.49,0.2]
[1761395520824,173.88875275,193.5,193.49,0.2]
[1761395521530,179.0567114,193.5,193.49,0.2]
[1761395525222,156.1767114,193.5,193.49,0.2]
[1761395526017,10.87647521,193.49,193.48,0.2]
[1761395526214,112.6764752,193.48,193.47,0.2]
[1761395526538,149.1664752,193.48,193.47,0.2]
[1761395526726,38.9257696,193.45,193.4,0.2]
[1761395526926,76.36804715,193.45,193.4,0.2]
[1761395527136,77.05804715,193.45,193.4,0.2]
[1761395530244,75.4157696,193.45,193.4,0.2]
[1761395530442,77.05804715,193.45,193.4,0.86]
[1761395531252,77.05804715,193.45,193.4,0.2]
[1761395533020,87.82428152,193.45,193.4,0.2]
[1761395535552,87.84428152,193.45,193.4,0.2]
[1761395535932,33.75647521,193.41,193.4,0.2]
[1761395536134,71.39164135,193.41,193.4,0.2]
[1761395536327,72.08164135,193.41,193.4,0.2]
[1761395538152,77.25200482,193.41,193.4,0.2]
[1761395538453,75.60972727,193.41,193.4,0.2]
[1761395538626,77.25200482,193.41,193.4,0.2]
[1761395560264,75.60972727,193.41,193.4,0.2]
[1761395560467,77.25200482,193.41,193.4,0.2]
[1761395560651,12.51875276,193.37,193.36,0.2]
[1761395560854,48.49164135,193.37,193.36,0.86]
[1761395561170,48.49164135,193.37,193.36,0.2]
[1761395561669,48.49164135,193.37,193.36,0.86]
[1761395561979,11.0693638,193.37,193.36,0.86]
[1761395562458,12.71164135,193.37,193.36,0.86]
[1761395562861,12.71164135,193.37,193.36,0.2]
[1761395563373,17.88307435,193.37,193.36,0.2]
[1761395563566,18.54307435,193.37,193.36,0.2]
[1761395564978,17.88307435,193.37,193.36,0.2]
[1761395565281,18.54307435,193.37,193.36,0.2]
[1761395566977,17.88307435,193.37,193.36,0.2]
[1761395567357,17.88307435,193.37,193.36,0.86]
[1761395567558,53.66307435,193.37,193.36,0.86]
[1761395567959,53.66307435,193.37,193.36,0.2]
[1761395568582,54.32307435,193.37,193.36,0.2]
[1761395569461,10.87647521,193.36,193.35,0.2]
[1761395569661,13.17875276,193.36,193.35,0.2]
[1761395570896,18.35045321,193.36,193.35,0.2]
[1761395575379,112.67647521,193.34,193.33,0.2]
[1761395575577,148.47647521,193.34,193.33,0.2]
[1761395575788,150.82875276,193.34,193.33,0.2]
[1761395576676,156.0009882,193.34,193.33,0.2]
[1761395578702,156.92962135,193.34,193.33,0.2]
[1761395581400,55.12962135,193.34,193.33,0.2]
[1761395581576,55.32250994,193.34,193.33,0.2]
[1761395583470,16.24159924,193.34,193.33,0.2]
[1761395583666,54.61250994,193.34,193.33,0.2]
[1761395584483,16.24159924,193.34,193.33,0.2]
[1761395584693,54.61250994,193.34,193.33,0.86]
[1761395584992,49.4402745,193.34,193.33,0.86]
[1761395585284,72.3202745,193.34,193.33,0.86]
[1761395585870,77.49250994,193.34,193.33,0.86]
[1761395586772,77.49250994,193.34,193.33,0.2]
[1761395588271,77.49250994,193.34,193.33,0.86]
[1761395589293,77.49250994,193.34,193.33,0.2]
[1761395597303,78.17250994,193.34,193.33,0.2]
[1761395600691,55.29250994,193.34,193.33,0.2]
[1761395602785,52.72159924,193.34,193.33,0.2]
[1761395602983,55.29250994,193.34,193.33,0.2]
[1761395604682,57.86342064,193.34,193.33,0.2]
[1761395604984,10.87647521,193.33,193.32,0.2]
[1761395605298,16.69829661,193.33,193.32,0.2]
[1761395605693,14.12738591,193.33,193.32,0.2]
[1761395606284,13.44738591,193.33,193.32,0.2]
[1761395606688,10.87647521,193.33,193.32,0.2]
[1761395606915,54.41988888,193.33,193.32,0.85]
[1761395607114,77.29988888,193.33,193.32,0.85]
[1761395607882,74.72897818,193.33,193.32,0.85]
[1761395608082,77.29988888,193.33,193.32,0.85]
[1761395608694,36.32738591,193.33,193.32,0.85]
[1761395609089,36.5202745,193.33,193.32,0.85]
[1761395612998,41.69277747,193.33,193.32,0.85]
[1761395614907,36.5202745,193.33,193.32,0.85]
[1761395620016,36.5202745,193.33,193.32,0.2]
[1761395620601,36.5202745,193.33,193.32,0.85]
[1761395622715,36.5202745,193.33,193.32,0.2]
[1761395625517,36.5202745,193.33,193.32,0.85]
[1761395625717,36.5202745,193.33,193.32,0.2]
[1761395632523,33.75647521,193.33,193.32,0.86]
[1761395632728,36.32738591,193.33,193.32,0.2]
[1761395633627,33.75647521,193.33,193.32,0.2]
[1761395633823,36.32738591,193.33,193.32,0.2]
[1761395634034,36.5202745,193.33,193.32,0.2]
[1761395634224,41.69277747,193.33,193.32,0.2]
[1761395638732,39.12186677,193.33,193.32,0.2]
[1761395638918,40.76667679,193.33,193.32,0.2]
[1761395640816,39.12186677,193.33,193.32,0.2]
[1761395641016,40.76667679,193.33,193.32,0.2]
[1761395641226,33.9493638,193.33,193.32,0.2]
[1761395641419,22.88,193.33,193.32,0.86]
[1761395642026,22.88,193.33,193.32,0.2]
[1761395643034,24.52481002,193.33,193.32,0.2]
[1761395643220,22.88,193.33,193.32,0.2]
[1761395643421,24.52481002,193.33,193.32,0.2]
[1761395646028,40.5737882,193.33,193.32,0.2]
[1761395646234,41.2637882,193.33,193.32,0.2]
[1761395648644,77.0437882,193.33,193.32,0.2]
[1761395649142,77.0437882,193.33,193.31,0.2]
[1761395649143,10.87647521,193.32,193.31,0.2]
[1761395649329,19.9834139,193.32,193.31,0.2]
[1761395650034,22.05557697,193.32,193.31,0.2]
[1761395650418,49.18417382,193.32,193.31,0.2]
[1761395650850,54.35694435,193.32,193.31,0.2]
[1761395653349,60.93618443,193.32,193.31,0.2]
[1761395653961,63.0083475,193.32,193.31,0.2]
[1761395654122,0.19288859,193.32,193.31,0.2]
[1761395654321,1.83769861,193.32,193.31,0.2]
[1761395654548,12.71417382,193.32,193.31,0.2]
[1761395657361,16.24213433,193.32,193.31,0.2]
[1761395657551,17.88694435,193.32,193.31,0.2]
[1761395657851,12.71417382,193.32,193.31,0.2]
[1761395658956,11.0693638,193.32,193.31,0.2]
[1761395659131,12.71417382,193.32,193.31,0.2]
[1761395660457,12.71417382,193.32,193.31,0.87]
[1761395661338,12.71417382,193.32,193.31,0.2]
[1761395664861,17.88694435,193.32,193.31,0.2]
[1761395665256,18.58694435,193.32,193.31,0.2]
[1761395669859,54.36694435,193.32,193.31,0.2]
[1761395683580,52.72213433,193.32,193.31,0.2]
[1761395683780,54.36694435,193.32,193.31,0.2]
[1761395687080,52.72213433,193.32,193.31,0.2]
[1761395687268,54.36694435,193.32,193.31,0.2]
[1761395689466,48.49417382,193.32,193.31,0.87]
[1761395689662,46.65647521,193.32,193.31,0.87]
[1761395691488,10.87647521,193.32,193.31,0.87]
[1761395692490,22.88,193.33,193.31,0.87]
[1761395692678,33.75647521,193.33,193.32,0.68]
[1761395694480,35.78,193.34,193.32,0.68]
[1761395694671,102.2,193.35,193.32,5.85277053]
[1761395695179,102.2,193.35,193.33,0.68]
[1761395696099,102.2,193.35,193.33,5.85238839]
[1761395696598,102.2,193.35,193.34,0.68]
[1761395701921,35.78,193.37,193.34,5.85223544]
[1761395702418,35.78,193.37,193.35,0.71]
[1761395704887,11.0693638,193.39,193.35,5.88183685]
[1761395705204,11.0693638,193.39,193.36,0.71]
[1761395705982,11.0693638,193.39,193.36,5.88166779]
[1761395706377,11.0693638,193.39,193.36,5.17166779]
[1761395706706,10.87647521,193.39,193.37,0.71]
[1761395709384,140.54897422,193.4,193.37,5.88135571]
[1761395709385,104.76897422,193.4,193.37,5.88135571]
[1761395709582,10.87647521,193.44,193.38,2.56897422]
[1761395709903,2.56897422,193.44,193.39,0.71]
[1761395710090,13.44544943,193.44,193.39,0.71]
[1761395710414,102.2,193.45,193.41,2.56897422]
[1761395710588,10.87647521,193.46,193.42,2.56897422]
[1761395710783,10.87647521,193.46,193.41,2.56897422]
[1761395711191,10.87647521,193.46,193.43,5.17166779]
[1761395711694,10.87647521,193.46,193.43,5.88166779]
[1761395712005,13.44544943,193.46,193.43,5.88166779]
[1761395712185,13.44544943,193.44,193.41,5.17035867]
[1761395712585,14.15544943,193.44,193.41,11.05202646]
[1761395713491,0.71,193.43,193.41,5.88166779]
[1761395713691,0.71,193.43,193.4,5.17060721]
[1761395713904,13.44544943,193.44,193.4,5.17060721]
[1761395714118,14.15544943,193.44,193.4,11.762275]
[1761395714712,3.27897422,193.44,193.4,11.762275]
[1761395715225,11.58647521,193.44,193.4,11.052275]
[1761395715413,11.58647521,193.44,193.41,0.71]
[1761395715725,11.58647521,193.44,193.41,5.88028835]
[1761395717809,10.87647521,193.44,193.41,5.88028835]
[1761395718221,36.66288859,193.45,193.41,5.88028835]
[1761395719906,10.87647521,193.44,193.41,5.88028835]
[1761395720102,10.87647521,193.44,193.41,18.80812657]
[1761395720921,36.67288859,193.45,193.41,20.66710079]
[1761395720922,138.15288859,193.45,193.41,20.66710079]
[1761395721227,102.2,193.45,193.42,3.23897422]
[1761395721400,102.2,193.45,193.42,18.764112]
[1761395721601,102.2,193.45,193.43,0.67]
[1761395721829,102.2,193.45,193.43,3.23897422]
[1761395722331,102.2,193.45,193.44,0.67]
[1761395722910,102.2,193.45,193.44,8.40853584]
[1761395723229,46.63647521,193.49,193.44,8.40853584]
[1761395723524,46.63647521,193.49,193.45,0.67]
[1761395723702,46.63647521,193.49,193.46,2.56897422]
[1761395724133,46.63647521,193.49,193.46,0.67]
[1761395724432,35.76,193.49,193.46,0.67]
[1761395724633,102.92,193.5,193.46,0.67]
[1761395724801,102.92,193.5,193.47,5.16876001]
[1761395725216,102.92,193.5,193.47,5.83876001]
[1761395725604,102.2,193.5,193.47,5.83876001]
[1761395725812,102.2,193.5,193.48,3.23897422]
[1761395726123,0.2,193.52,193.49,3.23897422]
[1761395726302,0.2,193.52,193.49,18.75849001]
[1761395726625,0.2,193.52,193.5,0.67]
[1761395726804,0.2,193.52,193.5,5.83773583]
[1761395727501,0.2,193.52,193.5,8.40671005]
[1761395727702,0.2,193.52,193.51,0.67]
[1761395728425,0.2,193.52,193.5,8.40671005]
[1761395728847,0.2,193.52,193.51,2.56897422]
[1761395729038,0.2,193.52,193.51,3.23897422]
[1761395729827,0.2,193.52,193.51,2.56897422]
[1761395731053,0.2,193.52,193.51,5.16769159]
[1761395731344,0.2,193.52,193.49,2.56897422]
[1761395731345,0.92,193.52,193.5,5.16793357]
[1761395733042,0.72,193.51,193.47,2.56897422]
[1761395733224,0.72,193.51,193.47,3.23897422]
[1761395733424,0.72,193.51,193.46,7.7380014]
[1761395733824,0.72,193.51,193.46,8.4080014]
[1761395734024,0.72,193.51,193.46,7.7380014]
[1761395734220,0.72,193.51,193.46,8.4080014]
[1761395736045,0.72,193.51,193.48,5.16849286]
[1761395741843,102.4,193.52,193.48,7.73746708]
[1761395742154,102.4,193.52,193.49,3.23897422]
[1761395742462,103.12,193.52,193.49,2.56897422]
[1761395743360,0.72,193.51,193.48,7.73746708]
[1761395744136,102.4,193.52,193.48,8.40746708]
[1761395744358,103.12,193.52,193.48,8.40746708]
[1761395744662,0.72,193.51,193.48,7.73746708]
[1761395746666,103.12,193.52,193.48,8.40746708]
[1761395747469,0.72,193.51,193.48,7.73746708]
[1761395747967,102.4,193.52,193.49,5.83797527]
[1761395748272,103.12,193.52,193.49,5.83797527]
[1761395748646,103.12,193.52,193.49,5.16797527]
[1761395750874,103.12,193.52,193.49,2.56897422]
[1761395751869,11.7293638,193.51,193.47,7.73773423]
[1761395752373,0.66,193.5,193.47,7.73773423]
[1761395753245,0.66,193.5,193.46,7.7380014]
[1761395755580,0.66,193.5,193.46,20.66056937]
[1761395757080,0.66,193.5,193.46,21.34056937]
[1761395758493,0.66,193.5,193.46,20.66056937]
[1761395759578,0.66,193.5,193.46,21.34056937]
[1761395759898,0.66,193.5,193.46,20.66056937]
[1761395760100,0.66,193.5,193.46,21.34056937]
[1761395760490,10.87647521,193.51,193.47,3.24897422]
[1761395760793,102.4,193.52,193.48,1.64130322]
[1761395760994,102.4,193.52,193.48,2.32130322]
[1761395761197,102.4,193.52,193.49,2.32130322]
[1761395761581,0.7,193.51,193.48,1.64130322]
[1761395761777,0.7,193.51,193.49,5.16822574]
[1761395763884,0.7,193.51,193.47,5.16876001]
[1761395764987,12.51777843,193.5,193.46,5.16902057]
[1761395765201,12.51777843,193.5,193.45,15.52031868]
[1761395765202,1.64130322,193.48,193.45,20.6896102]
[1761395765405,1.64130322,193.48,193.45,5.16929152]
[1761395765697,0.7,193.47,193.44,5.16951612]
[1761395766693,0.7,193.47,193.42,5.17009616]
[1761395766886,0.7,193.47,193.42,18.09533656]
[1761395769308,0.7,193.47,193.42,19.73663978]
[1761395769609,0.7,193.47,193.43,1.64130322]
[1761395770608,0.7,193.47,193.44,5.16956162]
[1761395772516,36.44,193.49,193.45,0.68]
[1761395772688,0.7,193.48,193.44,1.64130322]
[1761395774385,0.7,193.48,193.45,5.16929439]
[1761395776627,0.7,193.48,193.45,6.81059761]
[1761395778314,0.7,193.48,193.44,6.81086484]
[1761395778920,0.7,193.48,193.44,5.16956162]
[1761395779298,2.34130322,193.48,193.44,5.16956162]
[1761395779801,0.7,193.47,193.44,5.16956162]
[1761395780504,0.7,193.47,193.43,5.16982887]
[1761395782922,0.7,193.47,193.43,5.83982887]
[1761395783421,0.7,193.47,193.43,7.48113209]
[1761395783721,0.7,193.47,193.43,6.81113209]
[1761395784618,0.7,193.47,193.43,5.16982887]
[1761395784820,1.64130322,193.46,193.43,5.16982887]
[1761395785320,0.66,193.45,193.43,5.16982887]